{"text_format":"1","workbook":"xlsx","n_sheets":2,"sheets":["اليومية","data"],"not_rendered":{"charts":0,"images":0,"macros":1,"external_links":0,"defined_names":0,"comments":0,"pivot_tables":0},"unopened":[],"bounds":{"document_bytes":16777216,"sheet_cells":100000,"rows_first":2000,"rows_last":500,"rows_between":2000,"halvings":0,"cell_chars":16384,"cell_head_chars":4096},"cells_cut":0,"cells_raw":0,"read":"whole","date_system":"1900"}

{"sheet":"اليومية","index":0,"n_rows":245,"n_cols":24,"rows_kept":245,"cut":false,"hidden":false,"merged":[[3,11,4,11],[3,12,4,12],[3,13,4,13],[3,2,3,3],[3,4,4,4],[3,5,4,5],[3,6,4,6],[3,7,4,7],[3,8,4,8]]}
[]
[]
[]
[null,null,"الحساب",null,"رقم القيد","التاريــخ","حساب فرعي مدين","حساب فرعي دائن ","نوع السند","المدين","الدائن","اختبار القيد","المرحلة","المبلغ الكلي للقسط"]
[null,null,"المدين ","الدائن",null,null,null,null,null,100935000,100935000,null,null,null,"القسط 1","تاريخه","القسط 2","تاريخه","القسط 3","تاريخه","القسط 4","تاريخه","مجموع الاقساط","الباقي بالذمة"]
[null,null,"الصندوق","الايرادات",207,"2018-09-17","الصندوق","احمد حيدر قيس ","قبض",200000,200000,"صحيح","الاول ابتدائي ",900000]
[null,null,"الصندوق","الايرادات",74,"2018-08-01","الصندوق","احمد ماجد عكله","قبض",475000,475000,"صحيح","الخامس ابتدائي ",950000]
[null,null,"الصندوق","الايرادات",77,"2018-08-01","الصندوق","احمد وسيم كفاح ","قبض",300000,300000,"صحيح","الاول ابتدائي ",900000]
[null,null,"الصندوق","الايرادات",12,"2018-07-02","الصندوق","احمد يعسوب  صبيح","قبض",250000,250000,"صحيح","السادس اعدادي ",2000000]
[null,null,"الصندوق","الايرادات",132,"2018-09-09","الصندوق","اسد ضرغام رزاق ","قبض",250000,250000,"صحيح","الاول ابتدائي ",900000]
[null,null,"الصندوق","الايرادات",13,"2018-07-02","الصندوق","الكرار محمد رضا تركي","قبض",350000,350000,"صحيح","السادس اعدادي ",2000000]
[null,null,"الصندوق","الايرادات",134,"2018-09-09","الصندوق","المصطفى كرار فاضل ","قبض",250000,250000,"صحيح","الاول ابتدائي ",900000]
[null,null,"الصندوق","الايرادات",90,"2018-08-01","الصندوق","امير عبد الله عبيد ","قبض",500000,500000,"صحيح","الاول متوسط ",1000000]
[null,null,"الصندوق","الايرادات",59,"2018-07-01","الصندوق","امير محمد رضا مهدي","قبض",500000,500000,"صحيح","الاول متوسط ",1000000]
[null,null,"الصندوق","الايرادات",101,"2018-09-01","الصندوق","امير محمد مايح ","قبض",500000,500000,"صحيح","السادس اعدادي ",2000000]
[null,null,"الصندوق","الايرادات",164,"2018-09-16","الصندوق","امين ناجي محسن ","قبض",950000,950000,"صحيح","السادس ابتدائي ",950000]
[null,null,"الصندوق","الايرادات",191,"2018-09-12","الصندوق","ايسار يوسف حمود عبد الامير ","قبض",475000,475000,"صحيح","الثاني متوسط ",1000000]
[null,null,"الصندوق","الايرادات",170,"2018-09-13","الصندوق","بنين احمد عبد الامير ","قبض",500000,500000,"صحيح","السادس اعدادي ",2000000]
[null,null,"الصندوق","الايرادات",92,"2018-08-01","الصندوق","بنين منذر صاحب محمد ","قبض",500000,500000,"صحيح","الثاني متوسط ",1000000]
[null,null,"الصندوق","الايرادات",206,"2018-09-17","الصندوق","جعفر حكيم سلمان ","قبض",300000,300000,"صحيح","الاول ابتدائي ",900000]
[null,null,"الصندوق","الايرادات",110,"2018-09-02","الصندوق","جعفر عباس حسن ","قبض",900000,900000,"صحيح","الرابع ابتدائي ",900000]
[null,null,"الصندوق","الايرادات",195,"2018-09-12","الصندوق","جعفر محمد باقر ياسين ","قبض",300000,300000,"صحيح","الاول ابتدائي ",900000]
[null,null,"الصندوق","الايرادات",153,"2018-09-13","الصندوق","جعفر مهدي ابراهيم ","قبض",1000000,1000000,"صحيح","الاول متوسط ",1000000]
[null,null,"الصندوق","الايرادات",94,"2018-08-01","الصندوق","جمانه حسن سودي ","قبض",450000,450000,"صحيح","الرابع ابتدائي ",900000]
[null,null,"الصندوق","الايرادات",144,"2018-09-13","الصندوق","حذيفه حيدر عليوي ","قبض",100000,100000,"صحيح","الاول متوسط ",1000000]
[null,null,"الصندوق","الايرادات",135,"2018-09-09","الصندوق","حسن احمد جبار ","قبض",450000,450000,"صحيح","الرابع ابتدائي ",900000]
[null,null,"الصندوق","الايرادات",117,"2018-09-03","الصندوق","حسن احمد علي محمد ","قبض",300000,300000,"صحيح","الاول ابتدائي ",900000]
[null,null,"الصندوق","الايرادات",17,"2018-07-01","الصندوق","حسن المضي جبار زامل","قبض",400000,400000,"صحيح","الخامس اعدادي ",1350000]
[null,null,"الصندوق","الايرادات",38,"2018-07-01","الصندوق","حسن صلاح حسن","قبض",525000,525000,"صحيح","الثالث متوسط ",1050000]
[null,null,"الصندوق","الايرادات",213,"2018-09-17","الصندوق","حسن عبد الحكيم عامر ","قبض",250000,250000,"صحيح","الخامس ابتدائي ",950000]
[null,null,"الصندوق","الايرادات",140,"2018-09-15","الصندوق","حسن علي صاحب ","قبض",225000,225000,"صحيح","الثالث ابتدائي ",900000]
[null,null,"الصندوق","الايرادات",1,"2018-07-01","الصندوق","حسن فلاح عبد الكاظم","قبض",500000,500000,"صحيح","الثاني متوسط ",1000000]
[null,null,"الصندوق","الايرادات",107,"2018-09-02","الصندوق","حسن قاسم خلف ","قبض",450000,450000,"صحيح","الاول ابتدائي ",900000]
[null,null,"الصندوق","الايرادات",53,"2018-08-01","الصندوق","حسن محمد ناجي ","قبض",350000,350000,"صحيح","الخامس اعدادي ",1350000]
[null,null,"الصندوق","الايرادات",232,"2018-09-17","الصندوق","حسن محمد ناجي ","قبض",325000,325000,"صحيح","الخامس اعدادي ",1350000]
[null,null,"الصندوق","الايرادات",8,"2018-05-01","الصندوق","حسن هيثم جابر محمود","قبض",500000,500000,"صحيح","السادس اعدادي ",2000000]
[null,null,"الصندوق","الايرادات",56,"2018-08-12","الصندوق","حسنين حسين محسن","قبض",350000,350000,"صحيح","الاول متوسط ",1000000]
[null,null,"الصندوق","الايرادات",142,"2018-09-13","الصندوق","حسنين علي عبد الزهره ","قبض",900000,900000,"صحيح","الثاني ابتدائي ",900000]
[null,null,"الصندوق","الايرادات",11,"2018-07-02","الصندوق","حسين اغار صبيح","قبض",500000,500000,"صحيح","السادس اعدادي ",2000000]
[null,null,"الصندوق","الايرادات",203,"2018-09-16","الصندوق","حسين ثائر بركه ","قبض",250000,250000,"صحيح","الثاني ابتدائي ",900000]
[null,null,"الصندوق","الايرادات",120,"2018-09-10","الصندوق","حسين جبار عبد الحسين ","قبض",950000,950000,"صحيح","الخامس ابتدائي ",950000]
[null,null,"الصندوق","الايرادات",179,"2018-09-12","الصندوق","حسين راهي منصور ","قبض",500000,500000,"صحيح","الثاني متوسط ",1000000]
[null,null,"الصندوق","الايرادات",102,"2018-09-02","الصندوق","حسين رحيم حسين ","قبض",500000,500000,"صحيح","الاول متوسط ",1000000]
[null,null,"الصندوق","الايرادات",83,"2018-08-01","الصندوق","حسين شاكر عوده","قبض",450000,450000,"صحيح","الرابع ابتدائي ",900000]
[null,null,"الصندوق","الايرادات",82,"2018-08-01","الصندوق","حسين صفاء عبد الله","قبض",450000,450000,"صحيح","الاول ابتدائي ",900000]
[null,null,"الصندوق","الايرادات",60,"2018-08-04","الصندوق","حسين عباس كريم","قبض",500000,500000,"صحيح","الاول متوسط ",1000000]
[null,null,"الصندوق","الايرادات",104,"2018-09-02","الصندوق","حسين عقيل ابراهيم ","قبض",200000,200000,"صحيح","الاول ابتدائي ",900000]
[null,null,"الصندوق","الايرادات",116,"2018-09-03","الصندوق","حسين علي رحيم ","قبض",225000,225000,"صحيح","الاول ابتدائي ",900000]
[null,null,"الصندوق","الايرادات",227,"2018-09-18","الصندوق","حسين علي مصدق ","قبض",950000,950000,"صحيح","الخامس ابتدائي ",950000]
[null,null,"الصندوق","الايرادات",44,"2018-07-01","الصندوق","حسين عماد هاشم","قبض",1000000,1000000,"صحيح","السادس اعدادي ",2000000]
[null,null,"الصندوق","الايرادات",169,"2018-09-13","الصندوق","حسين محمد عبد الحمزه مهدي ","قبض",250000,250000,"صحيح","الاول متوسط ",1000000]
[null,null,"الصندوق","الايرادات",173,"2018-09-13","الصندوق","حسين نصير جبر ","قبض",400000,400000,"صحيح","الاول ابتدائي ",900000]
[null,null,"الصندوق","الايرادات",55,"2018-08-12","الصندوق","حسين نوماس نبهان","قبض",350000,350000,"صحيح","الاول متوسط ",1000000]
[null,null,"الصندوق","الايرادات",96,"2018-08-01","الصندوق","حسين يحي عبد الحسين ","قبض",500000,500000,"صحيح","الثاني متوسط ",1000000]
[null,null,"الصندوق","الايرادات",143,"2018-09-13","الصندوق","حوراء حيدر محمد موسى ","قبض",500000,500000,"صحيح","الاول متوسط ",1000000]
[null,null,"الصندوق","الايرادات",184,"2018-09-12","الصندوق","حوراء عباس جاسم ","قبض",425000,425000,"صحيح","الثالث متوسط ",1050000]
[null,null,"الصندوق","الايرادات",167,"2018-09-13","الصندوق","حوراء محمد علي هاشم ","قبض",450000,450000,"صحيح","الثاني ابتدائي ",900000]
[null,null,"الصندوق","الايرادات",216,"2018-09-17","الصندوق","حيدر سعيد حسين ","قبض",200000,200000,"صحيح","الاول ابتدائي ",900000]
[null,null,"الصندوق","الايرادات",218,"2018-09-17","الصندوق","حيدر عباس كريم ","قبض",450000,450000,"صحيح","الرابع ابتدائي ",900000]
[null,null,"الصندوق","الايرادات",219,"2018-09-17","الصندوق","حيدر محمد عبد الزهره ","قبض",200000,200000,"صحيح","الثالث ابتدائي ",900000]
[null,null,"الصندوق","الايرادات",192,"2018-09-12","الصندوق","حيدر يوسف حمود عبد الامير ","قبض",475000,475000,"صحيح","الخامس ابتدائي ",950000]
[null,null,"الصندوق","الايرادات",166,"2018-09-13","الصندوق","ذو الفقار علي وميض حامد ","قبض",200000,200000,"صحيح","الخامس ابتدائي ",950000]
[null,null,"الصندوق","الايرادات",29,"2018-07-07","الصندوق","رزاق حيدر رزاق","قبض",500000,500000,"صحيح","السادس اعدادي ",2000000]
[null,null,"الصندوق","الايرادات",78,"2018-08-01","الصندوق","رسول محمد عبد الله","قبض",500000,500000,"صحيح","الثاني متوسط ",1000000]
[null,null,"الصندوق","الايرادات",162,"2018-09-16","الصندوق","رضا اثير يوسف ","قبض",450000,450000,"صحيح","الرابع ابتدائي ",900000]
[null,null,"الصندوق","الايرادات",122,"2018-09-10","الصندوق","رضا حسين عبد الله ","قبض",225000,225000,"صحيح","الخامس ابتدائي ",950000]
[null,null,"الصندوق","الايرادات",124,"2018-09-10","الصندوق","رضا حيدر هادي ","قبض",300000,300000,"صحيح","الاول ابتدائي ",900000]
[null,null,"الصندوق","الايرادات",15,"2018-07-03","الصندوق","رضا كاظم ناصر ","قبض",300000,300000,"صحيح","الاول متوسط ",1000000]
[null,null,"الصندوق","الايرادات",174,"2018-09-13","الصندوق","رضا ميثم حسن ","قبض",900000,900000,"صحيح","السادس ابتدائي ",950000]
[null,null,"الصندوق","الايرادات",113,"2018-09-03","الصندوق","رضا نبيل محمد حسن ","قبض",250000,250000,"صحيح","الاول ابتدائي ",900000]
[null,null,"الصندوق","الايرادات",148,"2018-09-13","الصندوق","رقيه حيدر ميثم عبد الله ","قبض",450000,450000,"صحيح","الثاني ابتدائي ",900000]
[null,null,"الصندوق","الايرادات",198,"2018-09-12","الصندوق","رقيه ضرغام حميد ","قبض",250000,250000,"صحيح","الاول متوسط ",1000000]
[null,null,"الصندوق","الايرادات",131,"2018-05-09","الصندوق","روح الله اسامه سلمان ","قبض",1285000,1285000,"صحيح","الخامس اعدادي ",1350000]
[null,null,"الصندوق","الايرادات",159,"2018-09-13","الصندوق","رويده علاء رحيم ","قبض",500000,500000,"صحيح","السادس اعدادي ",2000000]
[null,null,"الصندوق","الايرادات",177,"2018-09-12","الصندوق","زهراء راهي منصور ","قبض",500000,500000,"صحيح","السادس اعدادي ",2000000]
[null,null,"الصندوق","الايرادات",185,"2018-09-12","الصندوق","زهراء عباس جاسم حسن ","قبض",675000,675000,"صحيح","الرابع اعدادي ",1350000]
[null,null,"الصندوق","الايرادات",215,"2018-09-17","الصندوق","زهراء عبد الحكيم عمار ","قبض",300000,300000,"صحيح","الرابع اعدادي ",1350000]
[null,null,"الصندوق","الايرادات",141,"2018-09-15","الصندوق","زهراء علي صاحب ","قبض",225000,225000,"صحيح","الخامس ابتدائي ",950000]
[null,null,"الصندوق","الايرادات",45,"2018-07-01","الصندوق","زيد سعيد جبار ","قبض",450000,450000,"صحيح","الاول ابتدائي ",900000]
[null,null,"الصندوق","الايرادات",42,"2018-07-01","الصندوق","زيد مجيد عبد الكاظم","قبض",300000,300000,"صحيح","الاول ابتدائي ",900000]
[null,null,"الصندوق","الايرادات",3,"2018-07-25","الصندوق","زيد منقذ سلمان","قبض",500000,500000,"صحيح","الاول متوسط ",1000000]
[null,null,"الصندوق","الايرادات",67,"2018-08-01","الصندوق","سالم قاسم محسن ","قبض",350000,350000,"صحيح","الاول متوسط ",1000000]
[null,null,"الصندوق","الايرادات",72,"2018-08-01","الصندوق","سجاد ماجد عكله ","قبض",450000,450000,"صحيح","الثاني ابتدائي ",900000]
[null,null,"الصندوق","الايرادات",6,"2018-04-01","الصندوق","سجاد مشتاق حافظ","قبض",450000,450000,"صحيح","السادس اعدادي ",2000000]
[null,null,"الصندوق","الايرادات",146,"2018-09-13","الصندوق","سراء عبد الرسول صالح ","قبض",150000,150000,"صحيح","الاول متوسط ",1000000]
[null,null,"الصندوق","الايرادات",200,"2018-09-12","الصندوق","سماره معن نعمه ","قبض",455000,455000,"صحيح","الخامس ابتدائي ",950000]
[null,null,"الصندوق","الايرادات",199,"2018-09-12","الصندوق","سناريا معن نعمه ","قبض",450000,450000,"صحيح","الثالث ابتدائي ",900000]
[null,null,"الصندوق","الايرادات",128,"2018-05-09","الصندوق","شهد محمد مهدي محي الدين ","قبض",500000,500000,"صحيح","الاول متوسط ",1000000]
[null,null,"الصندوق","الايرادات",154,"2018-09-13","الصندوق","صادق حيدر ابراهيم ","قبض",1000000,1000000,"صحيح","الاول متوسط ",1000000]
[null,null,"الصندوق","الايرادات",33,"2018-07-24","الصندوق","صفاء الدين حسين اسماعيل","قبض",500000,500000,"صحيح","الاول متوسط ",1000000]
[null,null,"الصندوق","الايرادات",75,"2018-08-01","الصندوق","ضرغام عبد المنعم عبد الرحيم ","قبض",225000,225000,"صحيح","الاول ابتدائي ",900000]
[null,null,"الصندوق","الايرادات",129,"2018-05-09","الصندوق","ضرغام مهند محمد زاير ","قبض",500000,500000,"صحيح","الاول متوسط ",1000000]
[null,null,"الصندوق","الايرادات",99,"2018-08-01","الصندوق","ضياء كريم رسول ","قبض",250000,250000,"صحيح","الثالث متوسط ",1050000]
[null,null,"الصندوق","الايرادات",189,"2018-09-12","الصندوق","طارق هشام حميد ","قبض",450000,450000,"صحيح","الثاني متوسط ",1000000]
[null,null,"الصندوق","الايرادات",76,"2018-08-01","الصندوق","ظافر حسين كريم ","قبض",500000,500000,"صحيح","السادس اعدادي ",2000000]
[null,null,"الصندوق","الايرادات",130,"2018-05-09","الصندوق","عباس اسعد قاسم ","قبض",475000,475000,"صحيح","الاول متوسط ",1000000]
[null,null,"الصندوق","الايرادات",121,"2018-09-10","الصندوق","عباس حسن عبد الله ","قبض",225000,225000,"صحيح","الثاني ابتدائي ",900000]
[null,null,"الصندوق","الايرادات",88,"2018-08-01","الصندوق","عباس حيدر جودي ","قبض",250000,250000,"صحيح","الاول ابتدائي ",900000]
[null,null,"الصندوق","الايرادات",228,"2018-09-18","الصندوق","عباس محمد نجم عبد الله ","قبض",200000,200000,"صحيح","الاول ابتدائي ",900000]
[null,null,"الصندوق","الايرادات",176,"2018-09-13","الصندوق","عباس ميثم حسن راضي ","قبض",900000,900000,"صحيح","الثاني ابتدائي ",900000]
[null,null,"الصندوق","الايرادات",81,"2018-08-01","الصندوق","عباس نوفل منتضر","قبض",200000,200000,"صحيح","الاول ابتدائي ",900000]
[null,null,"الصندوق","الايرادات",7,"2018-05-01","الصندوق","عبد الل..كاظم هاتف","قبض",500000,500000,"صحيح","السادس اعدادي ",2000000]
[null,null,"الصندوق","الايرادات",80,"2018-08-01","الصندوق","عبد الله حيدر عبد كاضم","قبض",250000,250000,"صحيح","الاول متوسط ",1000000]
[null,null,"الصندوق","الايرادات",220,"2018-09-17","الصندوق","عبد الله صفاء شهيد ","قبض",225000,225000,"صحيح","الاول ابتدائي ",900000]
[null,null,"الصندوق","الايرادات",105,"2018-09-02","الصندوق","عبد الله عقيل ابراهيم ","قبض",200000,200000,"صحيح","الخامس ابتدائي ",950000]
[null,null,"الصندوق","الايرادات",123,"2018-09-10","الصندوق","عبد الله علي محمد ","قبض",250000,250000,"صحيح","الثالث متوسط ",1050000]
[null,null,"الصندوق","الايرادات",229,"2018-09-18","الصندوق","عبد الله نجم عبد الله ","قبض",250000,250000,"صحيح","الاول ابتدائي ",900000]
[null,null,"الصندوق","الايرادات",58,"2018-07-01","الصندوق","عز الدين مشتاق عبد المطلب","قبض",500000,500000,"صحيح","الاول متوسط ",1000000]
[null,null,"الصندوق","الايرادات",32,"2018-07-01","الصندوق","علاء الدين حسين اسماعيل","قبض",525000,525000,"صحيح","الثالث متوسط ",1050000]
[null,null,"الصندوق","الايرادات",201,"2018-09-16","الصندوق","علي احمد جعفر ","قبض",225000,225000,"صحيح","الثالث ابتدائي ",900000]
[null,null,"الصندوق","الايرادات",70,"2018-08-01","الصندوق","علي اكبر علي ابراهيم ","قبض",500000,500000,"صحيح","السادس اعدادي ",2000000]
[null,null,"الصندوق","الايرادات",43,"2018-07-01","الصندوق","علي الرضا فلاح حسن","قبض",625000,625000,"صحيح","الرابع اعدادي ",1350000]
[null,null,"الصندوق","الايرادات",34,"2018-07-01","الصندوق","علي الكرار حيدر علي","قبض",450000,450000,"صحيح","الاول ابتدائي ",900000]
[null,null,"الصندوق","الايرادات",181,"2018-09-12","الصندوق","علي بهاء مهدي ","قبض",525000,525000,"صحيح","الثالث متوسط ",1050000]
[null,null,"الصندوق","الايرادات",57,"2018-07-01","الصندوق","علي حسن نجم","قبض",500000,500000,"صحيح","الاول متوسط ",1000000]
[null,null,"الصندوق","الايرادات",24,"2018-06-01","الصندوق","علي حسين رشيد","قبض",500000,500000,"صحيح","السادس اعدادي ",2000000]
[null,null,"الصندوق","الايرادات",205,"2018-09-16","الصندوق","علي حسين سليم ","قبض",400000,400000,"صحيح","الثالث ابتدائي ",900000]
[null,null,"الصندوق","الايرادات",155,"2018-09-13","الصندوق","علي خليل ابراهيم ","قبض",1000000,1000000,"صحيح","الاول متوسط ",1000000]
[null,null,"الصندوق","الايرادات",64,"2018-08-05","الصندوق","علي درع جبار","قبض",550000,550000,"صحيح","الثالث متوسط ",1050000]
[null,null,"الصندوق","الايرادات",163,"2018-09-16","الصندوق","علي رضا مسلم طالب ","قبض",200000,200000,"صحيح","الاول متوسط ",1000000]
[null,null,"الصندوق","الايرادات",208,"2018-09-17","الصندوق","علي زيد نوري","قبض",300000,300000,"صحيح","السادس ابتدائي ",950000]
[null,null,"الصندوق","الايرادات",62,"2018-08-08","الصندوق","علي سعد وحيد","قبض",300000,300000,"صحيح","الاول متوسط ",1000000]
[null,null,"الصندوق","الايرادات",187,"2018-09-12","الصندوق","علي عادل محمد ","قبض",300000,300000,"صحيح","الاول ابتدائي ",900000]
[null,null,"الصندوق","الايرادات",30,"2018-07-07","الصندوق","علي عامر محمد موسى كاظم","قبض",500000,500000,"صحيح","السادس اعدادي ",2000000]
[null,null,"الصندوق","الايرادات",212,"2018-09-17","الصندوق","علي عبد الحكيم عامر ","قبض",225000,225000,"صحيح","الاول ابتدائي ",900000]
[null,null,"الصندوق","الايرادات",10,"2018-07-02","الصندوق","علي عبد الكريم مهدي","قبض",500000,500000,"صحيح","السادس اعدادي ",2000000]
[null,null,"الصندوق","الايرادات",63,"2018-08-05","الصندوق","علي عبد المحسن ","قبض",250000,250000,"صحيح","السادس ابتدائي ",950000]
[null,null,"الصندوق","الايرادات",230,"2018-09-18","الصندوق","علي عبد الهادي عبد الحسن ","قبض",500000,500000,"صحيح","الاول متوسط ",1000000]
[null,null,"الصندوق","الايرادات",73,"2018-08-01","الصندوق","علي ماجد عكله ","قبض",450000,450000,"صحيح","الرابع ابتدائي ",900000]
[null,null,"الصندوق","الايرادات",39,"2018-07-01","الصندوق","علي نبيل عبد الهادي","قبض",450000,450000,"صحيح","الاول ابتدائي ",900000]
[null,null,"الصندوق","الايرادات",23,"2018-06-01","الصندوق","علي نوري خضير","قبض",500000,500000,"صحيح","السادس اعدادي ",2000000]
[null,null,"الصندوق","الايرادات",231,"2018-09-16","الصندوق","علي نوري خضير","قبض",500000,500000,"صحيح","السادس اعدادي ",2000000]
[null,null,"الصندوق","الايرادات",178,"2018-09-12","الصندوق","علي هادي راهي ","قبض",500000,500000,"صحيح","السادس ابتدائي ",950000]
[null,null,"الصندوق","الايرادات",145,"2018-09-13","الصندوق","عليوي حيدر عليوي ","قبض",100000,100000,"صحيح","السادس ابتدائي ",950000]
[null,null,"الصندوق","الايرادات",27,"2018-06-01","الصندوق","عمار علي خيون","قبض",500000,500000,"صحيح","السادس اعدادي ",2000000]
[null,null,"الصندوق","الايرادات",180,"2018-09-12","الصندوق","غيث عمار عبد علي ","قبض",525000,525000,"صحيح","الثالث متوسط ",1050000]
[null,null,"الصندوق","الايرادات",108,"2018-09-02","الصندوق","فاطمه عباس حسن ","قبض",1050000,1050000,"صحيح","الثالث متوسط ",1050000]
[null,null,"الصندوق","الايرادات",158,"2018-09-13","الصندوق","فاطمه منتظر هدي صاحب ","قبض",500000,500000,"صحيح","الثاني متوسط ",1000000]
[null,null,"الصندوق","الايرادات",66,"2018-08-01","الصندوق","فضل الله عبد الحسين ناهي","قبض",300000,300000,"صحيح","الاول ابتدائي ",900000]
[null,null,"الصندوق","الايرادات",95,"2018-08-01","الصندوق","فضه سلام عباس ","قبض",450000,450000,"صحيح","الاول ابتدائي ",900000]
[null,null,"الصندوق","الايرادات",2,"2018-07-01","الصندوق","كاظم فلاح عبد الكاظم","قبض",500000,500000,"صحيح","الاول متوسط ",1000000]
[null,null,"الصندوق","الايرادات",21,"2018-06-01","الصندوق","كرار جاسم جواد","قبض",500000,500000,"صحيح","السادس اعدادي ",2000000]
[null,null,"الصندوق","الايرادات",165,"2018-09-13","الصندوق","كميل زيد عباس ","قبض",950000,950000,"صحيح","السادس ابتدائي ",950000]
[null,null,"الصندوق","الايرادات",175,"2018-09-13","الصندوق","كميل ميثم حسن راضي ","قبض",965000,965000,"صحيح","الثالث متوسط ",1050000]
[null,null,"الصندوق","الايرادات",221,"2018-09-18","الصندوق","ليث طالب هادي ","قبض",250000,250000,"صحيح","الاول متوسط ",1000000]
[null,null,"الصندوق","الايرادات",224,"2018-09-18","الصندوق","ليث عدي صادق ","قبض",475000,475000,"صحيح","السادس ابتدائي ",950000]
[null,null,"الصندوق","الايرادات",79,"2018-08-01","الصندوق","ليث محمد عبد الله","قبض",500000,500000,"صحيح","الاول متوسط ",1000000]
[null,null,"الصندوق","الايرادات",118,"2018-09-10","الصندوق","مجتبى باسم مرهون ","قبض",300000,300000,"صحيح","الخامس ابتدائي ",950000]
[null,null,"الصندوق","الايرادات",125,"2018-06-09","الصندوق","مجتبى حسن جاسم ","قبض",150000,150000,"صحيح","الاول ابتدائي ",900000]
[null,null,"الصندوق","الايرادات",172,"2018-09-13","الصندوق","محمد احمد عبد الامير ","قبض",450000,450000,"صحيح","الاول ابتدائي ",900000]
[null,null,"الصندوق","الايرادات",84,"2018-08-19","الصندوق","محمد اياد محمد","قبض",0,0,"صحيح","الثالث متوسط ",1050000]
[null,null,"الصندوق","الايرادات",186,"2018-09-12","الصندوق","محمد اياد محمد","قبض",350000,350000,"صحيح","الثالث متوسط ",1050000]
[null,null,"الصندوق","الايرادات",149,"2018-09-13","الصندوق","محمد باقر حيدر اسماعيل ","قبض",250000,250000,"صحيح","الاول متوسط ",1000000]
[null,null,"الصندوق","الايرادات",65,"2018-07-01","الصندوق","محمد باقر درع جبار","قبض",550000,550000,"صحيح","الثالث متوسط ",1050000]
[null,null,"الصندوق","الايرادات",193,"2018-09-12","الصندوق","محمد باقر سعد هاتف ","قبض",250000,250000,"صحيح","الاول متوسط ",1000000]
[null,null,"الصندوق","الايرادات",109,"2018-09-02","الصندوق","محمد باقر عباس ","قبض",950000,950000,"صحيح","السادس ابتدائي ",950000]
[null,null,"الصندوق","الايرادات",87,"2018-08-01","الصندوق","محمد جميل رحيم ","قبض",300000,300000,"صحيح","الثاني متوسط ",1000000]
[null,null,"الصندوق","الايرادات",52,"2018-08-08","الصندوق","محمد حسن جواد كاظم ","قبض",250000,250000,"صحيح","الاول ابتدائي ",900000]
[null,null,"الصندوق","الايرادات",226,"2018-09-18","الصندوق","محمد حسن رائد محمد رضا ","قبض",500000,500000,"صحيح","الاول متوسط ",1000000]
[null,null,"الصندوق","الايرادات",31,"2018-07-07","الصندوق","محمد حسن عبد الهادي","قبض",500000,500000,"صحيح","الخامس اعدادي ",1350000]
[null,null,"الصندوق","الايرادات",19,"2018-06-01","الصندوق","محمد حسن قنان","قبض",500000,500000,"صحيح","السادس اعدادي ",2000000]
[null,null,"الصندوق","الايرادات",91,"2018-08-01","الصندوق","محمد حسن مجتبى محمد رضا ","قبض",900000,900000,"صحيح","الثالث ابتدائي ",900000]
[null,null,"الصندوق","الايرادات",139,"2018-09-11","الصندوق","محمد حسين طيب ","قبض",450000,450000,"صحيح","الاول متوسط ",1000000]
[null,null,"الصندوق","الايرادات",210,"2018-09-17","الصندوق","محمد حسين كاظم مريوم ","قبض",350000,350000,"صحيح","الخامس اعدادي ",1350000]
[null,null,"الصندوق","الايرادات",136,"2018-09-09","الصندوق","محمد حيدر مسافر ","قبض",475000,475000,"صحيح","الخامس ابتدائي ",950000]
[null,null,"الصندوق","الايرادات",114,"2018-09-03","الصندوق","محمد رضا بهاء محمد علي ","قبض",250000,250000,"صحيح","الاول ابتدائي ",900000]
[null,null,"الصندوق","الايرادات",36,"2018-07-09","الصندوق","محمد رضا حيدر محمد رضا","قبض",475000,475000,"صحيح","السادس ابتدائي ",950000]
[null,null,"الصندوق","الايرادات",214,"2018-09-17","الصندوق","محمد رضا عبد الحكيم ","قبض",225000,225000,"صحيح","السادس ابتدائي ",950000]
[null,null,"الصندوق","الايرادات",40,"2018-07-01","الصندوق","محمد رضا علي حسين","قبض",450000,450000,"صحيح","الاول ابتدائي ",900000]
[null,null,"الصندوق","الايرادات",26,"2018-06-01","الصندوق","محمد رضا فائز مرتضى","قبض",500000,500000,"صحيح","السادس اعدادي ",2000000]
[null,null,"الصندوق","الايرادات",48,"2018-06-08","الصندوق","محمد رضا محمد مطلب","قبض",300000,300000,"صحيح","الاول ابتدائي ",900000]
[null,null,"الصندوق","الايرادات",41,"2018-07-01","الصندوق","محمد رضا مصطفى سعد","قبض",450000,450000,"صحيح","الاول ابتدائي ",900000]
[null,null,"الصندوق","الايرادات",100,"2018-09-01","الصندوق","محمد رضا منذر نعمان ","قبض",500000,500000,"صحيح","الاول متوسط ",1000000]
[null,null,"الصندوق","الايرادات",204,"2018-09-16","الصندوق","محمد رضا مهند قاسم ","قبض",450000,450000,"صحيح","الثاني متوسط ",1000000]
[null,null,"الصندوق","الايرادات",194,"2018-09-12","الصندوق","محمد رضا يوسف حمود ","قبض",620000,620000,"صحيح","الرابع اعدادي ",1350000]
[null,null,"الصندوق","الايرادات",133,"2018-09-09","الصندوق","محمد رؤوف محمد","قبض",225000,225000,"صحيح","الاول ابتدائي ",900000]
[null,null,"الصندوق","الايرادات",209,"2018-09-17","الصندوق","محمد زيد نوري","قبض",300000,300000,"صحيح","الاول ابتدائي ",900000]
[null,null,"الصندوق","الايرادات",50,"2018-07-08","الصندوق","محمد سعيد عامر كاظم ","قبض",500000,500000,"صحيح","الاول متوسط ",1000000]
[null,null,"الصندوق","الايرادات",188,"2018-09-12","الصندوق","محمد عادل محمد ","قبض",255000,255000,"صحيح","الثاني ابتدائي ",900000]
[null,null,"الصندوق","الايرادات",222,"2018-09-18","الصندوق","محمد عبد الكاظم كريم ","قبض",250000,250000,"صحيح","الاول متوسط ",1000000]
[null,null,"الصندوق","الايرادات",161,"2018-09-16","الصندوق","محمد عقيل حسن ","قبض",450000,450000,"صحيح","الخامس ابتدائي ",950000]
[null,null,"الصندوق","الايرادات",202,"2018-09-16","الصندوق","محمد علي ثائر بركه ","قبض",250000,250000,"صحيح","الخامس ابتدائي ",950000]
[null,null,"الصندوق","الايرادات",28,"2018-07-07","الصندوق","محمد علي حسين صالح","قبض",400000,400000,"صحيح","السادس اعدادي ",2000000]
[null,null,"الصندوق","الايرادات",115,"2018-09-03","الصندوق","محمد علي حيدر صباح ","قبض",200000,200000,"صحيح","الاول ابتدائي ",900000]
[null,null,"الصندوق","الايرادات",37,"2018-07-01","الصندوق","محمد علي سيف حسين","قبض",450000,450000,"صحيح","الاول ابتدائي ",900000]
[null,null,"الصندوق","الايرادات",61,"2018-08-06","الصندوق","محمد مهدي منتظر","قبض",250000,250000,"صحيح","الاول ابتدائي ",900000]
[null,null,"الصندوق","الايرادات",126,"2018-05-09","الصندوق","محمد مهنا حمود حمادي ","قبض",300000,300000,"صحيح","السادس اعدادي ",2000000]
[null,null,"الصندوق","الايرادات",85,"2018-08-01","الصندوق","محمد نبيل مرعي حسن","قبض",500000,500000,"صحيح","الاول متوسط ",1000000]
[null,null,"الصندوق","الايرادات",97,"2018-08-01","الصندوق","محمود سعد عبود ","قبض",475000,475000,"صحيح","السادس ابتدائي ",950000]
[null,null,"الصندوق","الايرادات",18,"2018-06-01","الصندوق","مرتجى تحرير حميد","قبض",500000,500000,"صحيح","السادس اعدادي ",2000000]
[null,null,"الصندوق","الايرادات",5,"2018-03-01","الصندوق","مرتضى ارؤكان بديوي","قبض",500000,500000,"صحيح","السادس اعدادي ",2000000]
[null,null,"الصندوق","الايرادات",16,"2018-07-03","الصندوق","مرتضى رحيم حسين","قبض",525000,525000,"صحيح","الثالث متوسط ",1050000]
[null,null,"الصندوق","الايرادات",54,"2018-08-04","الصندوق","مرتضى محمد علي حسن ","قبض",675000,675000,"صحيح","الرابع اعدادي ",1350000]
[null,null,"الصندوق","الايرادات",196,"2018-09-12","الصندوق","مريم حيدر ابراهيم ","قبض",350000,350000,"صحيح","الخامس اعدادي ",1350000]
[null,null,"الصندوق","الايرادات",25,"2018-06-01","الصندوق","مريم ضياء شسعيد","قبض",1000000,1000000,"صحيح","السادس اعدادي ",2000000]
[null,null,"الصندوق","الايرادات",103,"2018-09-02","الصندوق","مسلم عقيل ابراهيم ","قبض",200000,200000,"صحيح","الاول متوسط ",1000000]
[null,null,"الصندوق","الايرادات",69,"2018-08-01","الصندوق","مسلم عمار عبد ال...","قبض",300000,300000,"صحيح","الاول متوسط ",1000000]
[null,null,"الصندوق","الايرادات",127,"2018-05-09","الصندوق","مصطفى توفيق عبد الرحيم ","قبض",200000,200000,"صحيح","الثالث متوسط ",1050000]
[null,null,"الصندوق","الايرادات",86,"2018-08-01","الصندوق","مصطفى حيدر فرحان ","قبض",450000,450000,"صحيح","الاول ابتدائي ",900000]
[null,null,"الصندوق","الايرادات",147,"2018-09-13","الصندوق","مصطفى حيدر ميثم عبد الله ","قبض",450000,450000,"صحيح","السادس ابتدائي ",950000]
[null,null,"الصندوق","الايرادات",190,"2018-09-12","الصندوق","مصطفى رائد لطيف ","قبض",100000,100000,"صحيح","الخامس ابتدائي ",950000]
[null,null,"الصندوق","الايرادات",4,"2018-07-25","الصندوق","مصطفى صباح عبد الهادي","قبض",500000,500000,"صحيح","الاول متوسط ",1000000]
[null,null,"الصندوق","الايرادات",217,"2018-09-17","الصندوق","مصطفى عباس كريم ","قبض",450000,450000,"صحيح","الخامس ابتدائي ",950000]
[null,null,"الصندوق","الايرادات",225,"2018-09-18","الصندوق","مصطفى عدي صادق ","قبض",450000,450000,"صحيح","الرابع ابتدائي ",900000]
[null,null,"الصندوق","الايرادات",89,"2018-08-01","الصندوق","مصطفى موسى جعفر ","قبض",200000,200000,"صحيح","الثالث متوسط ",1050000]
[null,null,"الصندوق","الايرادات",47,"2018-08-05","الصندوق","مقتدى نعمان محمد","قبض",0,0,"صحيح","الثالث متوسط ",1050000]
[null,null,"الصندوق","الايرادات",160,"2018-09-15","الصندوق","مقداد اسعد رشاد ","قبض",600000,600000,"صحيح","السادس اعدادي ",2000000]
[null,null,"الصندوق","الايرادات",150,"2018-09-13","الصندوق","ملك عبد الله عبد الكريم بلال ","قبض",300000,300000,"صحيح","السادس ابتدائي ",950000]
[null,null,"الصندوق","الايرادات",138,"2018-09-09","الصندوق","منتظر احمد عبد الرحمن ","قبض",250000,250000,"صحيح","الاول متوسط ",1000000]
[null,null,"الصندوق","الايرادات",22,"2018-06-01","الصندوق","منتظر احمد هاشم","قبض",500000,500000,"صحيح","السادس اعدادي ",2000000]
[null,null,"الصندوق","الايرادات",223,"2018-09-18","الصندوق","منتظر صادق جعفر ","قبض",500000,500000,"صحيح","الاول ابتدائي ",900000]
[null,null,"الصندوق","الايرادات",20,"2018-06-01","الصندوق","منتظر عبد الرحيم","قبض",500000,500000,"صحيح","السادس اعدادي ",2000000]
[null,null,"الصندوق","الايرادات",106,"2018-09-02","الصندوق","منتظر عبد العباس عبد الله ","قبض",250000,250000,"صحيح","الخامس ابتدائي ",950000]
[null,null,"الصندوق","الايرادات",46,"2018-08-01","الصندوق","مهدي حيدر محمد جلاب ","قبض",450000,450000,"صحيح","الاول ابتدائي ",900000]
[null,null,"الصندوق","الايرادات",71,"2018-08-01","الصندوق","مهدي ستار عبد الساده ","قبض",300000,300000,"صحيح","الاول متوسط ",1000000]
[null,null,"الصندوق","الايرادات",151,"2018-09-13","الصندوق","مهدي عبد الكريم بلال ","قبض",300000,300000,"صحيح","الاول ابتدائي ",900000]
[null,null,"الصندوق","الايرادات",119,"2018-09-10","الصندوق","مهدي منتظر رعد ","قبض",200000,200000,"صحيح","الاول ابتدائي ",900000]
[null,null,"الصندوق","الايرادات",137,"2018-09-09","الصندوق","مهدي منتظر محمد ","قبض",225000,225000,"صحيح","الاول ابتدائي ",900000]
[null,null,"الصندوق","الايرادات",49,"2018-07-08","الصندوق","مهيمن فراس سليم","قبض",300000,300000,"صحيح","السادس ابتدائي ",950000]
[null,null,"الصندوق","الايرادات",112,"2018-09-02","الصندوق","مؤمل قصي نعمه حسون ","قبض",905000,905000,"صحيح","السادس ابتدائي ",950000]
[null,null,"الصندوق","الايرادات",156,"2018-09-13","الصندوق","ميار اجود محسن عبد الصاحب","قبض",350000,350000,"صحيح","الثالث ابتدائي ",900000]
[null,null,"الصندوق","الايرادات",9,"2018-06-03","الصندوق","نبأ فائز كامل","قبض",500000,500000,"صحيح","السادس اعدادي ",2000000]
[null,null,"الصندوق","الايرادات",171,"2018-09-13","الصندوق","نرجس احمد عبد الامير ","قبض",450000,450000,"صحيح","السادس ابتدائي ",950000]
[null,null,"الصندوق","الايرادات",182,"2018-09-12","الصندوق","نرجس عباس جاسم حسن ","قبض",450000,450000,"صحيح","الاول ابتدائي ",900000]
[null,null,"الصندوق","الايرادات",152,"2018-09-13","الصندوق","نرجس عبد الله عبد الكريم بلال ","قبض",350000,350000,"صحيح","الاول ابتدائي ",900000]
[null,null,"الصندوق","الايرادات",93,"2018-08-01","الصندوق","نهى حسن سودي ","قبض",500000,500000,"صحيح","الثاني متوسط ",1000000]
[null,null,"الصندوق","الايرادات",183,"2018-09-12","الصندوق","نور الهدى عباس جاسم ","قبض",450000,450000,"صحيح","الخامس ابتدائي ",950000]
[null,null,"الصندوق","الايرادات",168,"2018-09-13","الصندوق","هاشم محمد علي هاشم ","قبض",450000,450000,"صحيح","الرابع ابتدائي ",900000]
[null,null,"الصندوق","الايرادات",111,"2018-09-02","الصندوق","همام قصي نعمه حسون ","قبض",900000,900000,"صحيح","الاول ابتدائي ",900000]
[null,null,"الصندوق","الايرادات",197,"2018-09-12","الصندوق","ياسمين حسنين حيدر ","قبض",450000,450000,"صحيح","الاول ابتدائي ",900000]
[null,null,"الصندوق","الايرادات",157,"2018-09-13","الصندوق","ياسين اجود محسن عبد الصاحب","قبض",350000,350000,"صحيح","الاول ابتدائي ",900000]
[null,null,"الصندوق","الايرادات",68,"2018-08-01","الصندوق","يزن ازار محمد رضا","قبض",450000,450000,"صحيح","الاول ابتدائي ",900000]
[null,null,"الصندوق","الايرادات",211,"2018-09-17","الصندوق","يوسف احمد شاكر ","قبض",400000,400000,"صحيح","السادس ابتدائي ",950000]
[null,null,"الصندوق","الايرادات",98,"2018-08-01","الصندوق","يوسف حسين حمودي ","قبض",400000,400000,"صحيح","الاول متوسط ",1000000]
[null,null,"الصندوق","الايرادات",35,"2018-07-09","الصندوق","يوسف حيدر محمد  رضا","قبض",450000,450000,"صحيح","الثالث ابتدائي ",900000]
[null,null,"الصندوق","الايرادات",51,"2018-07-08","الصندوق","يوسف محمد صالح ","قبض",300000,300000,"صحيح","السادس ابتدائي ",950000]
[null,null,"الصندوق","الايرادات",14,"2018-07-02","الصندوق","يوسف مكي شاكر","قبض",1000000,1000000,"صحيح","السادس اعدادي ",2000000]
[null,null,"الصندوق","الايرادات",233,null,null,null,null,null,null,"صحيح",null,""]
[null,null,"الصندوق","الايرادات",234,null,null,null,null,null,null,"صحيح",null,""]
[null,null,"الصندوق","الايرادات",235,null,null,null,null,null,null,"صحيح",null,""]
[null,null,"الصندوق","الايرادات",236,null,null,null,null,null,null,"صحيح",null,""]
[null,null,"الصندوق","الايرادات",237,null,null,null,null,null,null,"صحيح",null,""]
[null,null,"الصندوق","الايرادات",238,null,null,null,null,null,null,"صحيح",null,""]
[null,null,"الصندوق","الايرادات",239,null,null,null,null,null,null,"صحيح",null,""]
[null,null,"الصندوق","الايرادات",240,null,null,null,null,null,null,"صحيح",null,""]

{"sheet":"data","index":1,"n_rows":236,"n_cols":18,"rows_kept":236,"cut":false,"hidden":false,"merged":[]}
[]
[]
[]
["no","حساب فرعي دائن ","المرحلة","المبلغ الكلي","القسط 1","تاريخه","رقم القيد","القسط 2","تاريخه","رقم القيد","القسط 3","تاريخه","رقم القيد","القسط 4","تاريخه","رقم القيد","مجموع الاقساط","الباقي بالذمة"]
[1,"احمد حيدر قيس ","الاول ابتدائي ",900000,5000,"2018-10-01",3333,350000,"2018-11-01",5555,null,null,null,null,null,null,{"$f":"E5+H5+K5+N5","v":355000},{"$f":"D5-Q5","v":545000}]
[2,"احمد ماجد عكله","الخامس ابتدائي ",950000,null,null,null,null,null,null,null,null,null,null,null,null,{"$f":"E6+H6+K6+N6","v":0},{"$f":"D6-Q6","v":950000}]
[3,"احمد وسيم كفاح ","الاول ابتدائي ",900000,null,null,null,null,null,null,null,null,null,null,null,null,0,900000]
[4,"احمد يعسوب  صبيح","السادس اعدادي ",2000000,null,null,null,null,null,null,null,null,null,null,null,null,0,2000000]
[5,"اسد ضرغام رزاق ","الاول ابتدائي ",900000,null,null,null,null,null,null,null,null,null,null,null,null,0,900000]
[6,"الكرار محمد رضا تركي","السادس اعدادي ",2000000,null,null,null,null,null,null,null,null,null,null,null,null,0,2000000]
[7,"المصطفى كرار فاضل ","الاول ابتدائي ",900000,null,null,null,null,null,null,null,null,null,null,null,null,0,900000]
[8,"امير عبد الله عبيد ","الاول متوسط ",1000000,null,null,null,null,null,null,null,null,null,null,null,null,0,1000000]
[9,"امير محمد رضا مهدي","الاول متوسط ",1000000,null,null,null,null,null,null,null,null,null,null,null,null,0,1000000]
[10,"امير محمد مايح ","السادس اعدادي ",2000000,null,null,null,null,null,null,null,null,null,null,null,null,0,2000000]
[11,"امين ناجي محسن ","السادس ابتدائي ",950000,null,null,null,null,null,null,null,null,null,null,null,null,0,950000]
[12,"ايسار يوسف حمود عبد الامير ","الثاني متوسط ",1000000,null,null,null,null,null,null,null,null,null,null,null,null,0,1000000]
[13,"بنين احمد عبد الامير ","السادس اعدادي ",2000000,null,null,null,null,null,null,null,null,null,null,null,null,0,2000000]
[14,"بنين منذر صاحب محمد ","الثاني متوسط ",1000000,null,null,null,null,null,null,null,null,null,null,null,null,0,1000000]
[15,"جعفر حكيم سلمان ","الاول ابتدائي ",900000,null,null,null,null,null,null,null,null,null,null,null,null,0,900000]
[16,"جعفر عباس حسن ","الرابع ابتدائي ",900000,null,null,null,null,null,null,null,null,null,null,null,null,0,900000]
[17,"جعفر محمد باقر ياسين ","الاول ابتدائي ",900000,null,null,null,null,null,null,null,null,null,null,null,null,0,900000]
[18,"جعفر مهدي ابراهيم ","الاول متوسط ",1000000,null,null,null,null,null,null,null,null,null,null,null,null,0,1000000]
[19,"جمانه حسن سودي ","الرابع ابتدائي ",900000,null,null,null,null,null,null,null,null,null,null,null,null,0,900000]
[20,"حذيفه حيدر عليوي ","الاول متوسط ",1000000,null,null,null,null,null,null,null,null,null,null,null,null,0,1000000]
[21,"حسن احمد جبار ","الرابع ابتدائي ",900000,null,null,null,null,null,null,null,null,null,null,null,null,0,900000]
[22,"حسن احمد علي محمد ","الاول ابتدائي ",900000,null,null,null,null,null,null,null,null,null,null,null,null,0,900000]
[23,"حسن المضي جبار زامل","الخامس اعدادي ",1350000,null,null,null,null,null,null,null,null,null,null,null,null,0,1350000]
[24,"حسن صلاح حسن","الثالث متوسط ",1050000,null,null,null,null,null,null,null,null,null,null,null,null,0,1050000]
[25,"حسن عبد الحكيم عامر ","الخامس ابتدائي ",950000,null,null,null,null,null,null,null,null,null,null,null,null,0,950000]
[26,"حسن علي صاحب ","الثالث ابتدائي ",900000,null,null,null,null,null,null,null,null,null,null,null,null,0,900000]
[27,"حسن فلاح عبد الكاظم","الثاني متوسط ",1000000,null,null,null,null,null,null,null,null,null,null,null,null,0,1000000]
[28,"حسن قاسم خلف ","الاول ابتدائي ",900000,null,null,null,null,null,null,null,null,null,null,null,null,0,900000]
[29,"حسن محمد ناجي ","الخامس اعدادي ",1350000,null,null,null,null,null,null,null,null,null,null,null,null,0,1350000]
[30,"حسن محمد ناجي ","الخامس اعدادي ",1350000,null,null,null,null,null,null,null,null,null,null,null,null,0,1350000]
[31,"حسن هيثم جابر محمود","السادس اعدادي ",2000000,null,null,null,null,null,null,null,null,null,null,null,null,0,2000000]
[32,"حسنين حسين محسن","الاول متوسط ",1000000,null,null,null,null,null,null,null,null,null,null,null,null,0,1000000]
[33,"حسنين علي عبد الزهره ","الثاني ابتدائي ",900000,null,null,null,null,null,null,null,null,null,null,null,null,0,900000]
[34,"حسين اغار صبيح","السادس اعدادي ",2000000,null,null,null,null,null,null,null,null,null,null,null,null,0,2000000]
[35,"حسين ثائر بركه ","الثاني ابتدائي ",900000,null,null,null,null,null,null,null,null,null,null,null,null,0,900000]
[36,"حسين جبار عبد الحسين ","الخامس ابتدائي ",950000,null,null,null,null,null,null,null,null,null,null,null,null,0,950000]
[37,"حسين راهي منصور ","الثاني متوسط ",1000000,null,null,null,null,null,null,null,null,null,null,null,null,0,1000000]
[38,"حسين رحيم حسين ","الاول متوسط ",1000000,null,null,null,null,null,null,null,null,null,null,null,null,0,1000000]
[39,"حسين شاكر عوده","الرابع ابتدائي ",900000,null,null,null,null,null,null,null,null,null,null,null,null,0,900000]
[40,"حسين صفاء عبد الله","الاول ابتدائي ",900000,null,null,null,null,null,null,null,null,null,null,null,null,0,900000]
[41,"حسين عباس كريم","الاول متوسط ",1000000,null,null,null,null,null,null,null,null,null,null,null,null,0,1000000]
[42,"حسين عقيل ابراهيم ","الاول ابتدائي ",900000,null,null,null,null,null,null,null,null,null,null,null,null,0,900000]
[43,"حسين علي رحيم ","الاول ابتدائي ",900000,null,null,null,null,null,null,null,null,null,null,null,null,0,900000]
[44,"حسين علي مصدق ","الخامس ابتدائي ",950000,null,null,null,null,null,null,null,null,null,null,null,null,0,950000]
[45,"حسين عماد هاشم","السادس اعدادي ",2000000,null,null,null,null,null,null,null,null,null,null,null,null,0,2000000]
[46,"حسين محمد عبد الحمزه مهدي ","الاول متوسط ",1000000,null,null,null,null,null,null,null,null,null,null,null,null,0,1000000]
[47,"حسين نصير جبر ","الاول ابتدائي ",900000,null,null,null,null,null,null,null,null,null,null,null,null,0,900000]
[48,"حسين نوماس نبهان","الاول متوسط ",1000000,null,null,null,null,null,null,null,null,null,null,null,null,0,1000000]
[49,"حسين يحي عبد الحسين ","الثاني متوسط ",1000000,null,null,null,null,null,null,null,null,null,null,null,null,0,1000000]
[50,"حوراء حيدر محمد موسى ","الاول متوسط ",1000000,null,null,null,null,null,null,null,null,null,null,null,null,0,1000000]
[51,"حوراء عباس جاسم ","الثالث متوسط ",1050000,null,null,null,null,null,null,null,null,null,null,null,null,0,1050000]
[52,"حوراء محمد علي هاشم ","الثاني ابتدائي ",900000,null,null,null,null,null,null,null,null,null,null,null,null,0,900000]
[53,"حيدر سعيد حسين ","الاول ابتدائي ",900000,null,null,null,null,null,null,null,null,null,null,null,null,0,900000]
[54,"حيدر عباس كريم ","الرابع ابتدائي ",900000,null,null,null,null,null,null,null,null,null,null,null,null,0,900000]
[55,"حيدر محمد عبد الزهره ","الثالث ابتدائي ",900000,null,null,null,null,null,null,null,null,null,null,null,null,0,900000]
[56,"حيدر يوسف حمود عبد الامير ","الخامس ابتدائي ",950000,null,null,null,null,null,null,null,null,null,null,null,null,0,950000]
[57,"ذو الفقار علي وميض حامد ","الخامس ابتدائي ",950000,null,null,null,null,null,null,null,null,null,null,null,null,0,950000]
[58,"رزاق حيدر رزاق","السادس اعدادي ",2000000,null,null,null,null,null,null,null,null,null,null,null,null,0,2000000]
[59,"رسول محمد عبد الله","الثاني متوسط ",1000000,null,null,null,null,null,null,null,null,null,null,null,null,0,1000000]
[60,"رضا اثير يوسف ","الرابع ابتدائي ",900000,null,null,null,null,null,null,null,null,null,null,null,null,0,900000]
[61,"رضا حسين عبد الله ","الخامس ابتدائي ",950000,null,null,null,null,null,null,null,null,null,null,null,null,0,950000]
[62,"رضا حيدر هادي ","الاول ابتدائي ",900000,null,null,null,null,null,null,null,null,null,null,null,null,0,900000]
[63,"رضا كاظم ناصر ","الاول متوسط ",1000000,null,null,null,null,null,null,null,null,null,null,null,null,0,1000000]
[64,"رضا ميثم حسن ","السادس ابتدائي ",950000,null,null,null,null,null,null,null,null,null,null,null,null,0,950000]
[65,"رضا نبيل محمد حسن ","الاول ابتدائي ",900000,null,null,null,null,null,null,null,null,null,null,null,null,0,900000]
[66,"رقيه حيدر ميثم عبد الله ","الثاني ابتدائي ",900000,null,null,null,null,null,null,null,null,null,null,null,null,{"$f":"E70+H70+K70+N70","v":0},{"$f":"D70-Q70","v":900000}]
[67,"رقيه ضرغام حميد ","الاول متوسط ",1000000,null,null,null,null,null,null,null,null,null,null,null,null,0,1000000]
[68,"روح الله اسامه سلمان ","الخامس اعدادي ",1350000,null,null,null,null,null,null,null,null,null,null,null,null,0,1350000]
[69,"رويده علاء رحيم ","السادس اعدادي ",2000000,null,null,null,null,null,null,null,null,null,null,null,null,0,2000000]
[70,"زهراء راهي منصور ","السادس اعدادي ",2000000,null,null,null,null,null,null,null,null,null,null,null,null,0,2000000]
[71,"زهراء عباس جاسم حسن ","الرابع اعدادي ",1350000,null,null,null,null,null,null,null,null,null,null,null,null,0,1350000]
[72,"زهراء عبد الحكيم عمار ","الرابع اعدادي ",1350000,null,null,null,null,null,null,null,null,null,null,null,null,0,1350000]
[73,"زهراء علي صاحب ","الخامس ابتدائي ",950000,null,null,null,null,null,null,null,null,null,null,null,null,0,950000]
[74,"زيد سعيد جبار ","الاول ابتدائي ",900000,null,null,null,null,null,null,null,null,null,null,null,null,0,900000]
[75,"زيد مجيد عبد الكاظم","الاول ابتدائي ",900000,null,null,null,null,null,null,null,null,null,null,null,null,0,900000]
[76,"زيد منقذ سلمان","الاول متوسط ",1000000,null,null,null,null,null,null,null,null,null,null,null,null,0,1000000]
[77,"سالم قاسم محسن ","الاول متوسط ",1000000,null,null,null,null,null,null,null,null,null,null,null,null,0,1000000]
[78,"سجاد ماجد عكله ","الثاني ابتدائي ",900000,null,null,null,null,null,null,null,null,null,null,null,null,0,900000]
[79,"سجاد مشتاق حافظ","السادس اعدادي ",2000000,null,null,null,null,null,null,null,null,null,null,null,null,0,2000000]
[80,"سراء عبد الرسول صالح ","الاول متوسط ",1000000,null,null,null,null,null,null,null,null,null,null,null,null,0,1000000]
[81,"سماره معن نعمه ","الخامس ابتدائي ",950000,null,null,null,null,null,null,null,null,null,null,null,null,0,950000]
[82,"سناريا معن نعمه ","الثالث ابتدائي ",900000,null,null,null,null,null,null,null,null,null,null,null,null,0,900000]
[83,"شهد محمد مهدي محي الدين ","الاول متوسط ",1000000,null,null,null,null,null,null,null,null,null,null,null,null,0,1000000]
[84,"صادق حيدر ابراهيم ","الاول متوسط ",1000000,null,null,null,null,null,null,null,null,null,null,null,null,0,1000000]
[85,"صفاء الدين حسين اسماعيل","الاول متوسط ",1000000,null,null,null,null,null,null,null,null,null,null,null,null,0,1000000]
[86,"ضرغام عبد المنعم عبد الرحيم ","الاول ابتدائي ",900000,null,null,null,null,null,null,null,null,null,null,null,null,0,900000]
[87,"ضرغام مهند محمد زاير ","الاول متوسط ",1000000,null,null,null,null,null,null,null,null,null,null,null,null,0,1000000]
[88,"ضياء كريم رسول ","الثالث متوسط ",1050000,null,null,null,null,null,null,null,null,null,null,null,null,0,1050000]
[89,"طارق هشام حميد ","الثاني متوسط ",1000000,null,null,null,null,null,null,null,null,null,null,null,null,0,1000000]
[90,"ظافر حسين كريم ","السادس اعدادي ",2000000,null,null,null,null,null,null,null,null,null,null,null,null,0,2000000]
[91,"عباس اسعد قاسم ","الاول متوسط ",1000000,null,null,null,null,null,null,null,null,null,null,null,null,0,1000000]
[92,"عباس حسن عبد الله ","الثاني ابتدائي ",900000,null,null,null,null,null,null,null,null,null,null,null,null,0,900000]
[93,"عباس حيدر جودي ","الاول ابتدائي ",900000,null,null,null,null,null,null,null,null,null,null,null,null,0,900000]
[94,"عباس محمد نجم عبد الله ","الاول ابتدائي ",900000,null,null,null,null,null,null,null,null,null,null,null,null,0,900000]
[95,"عباس ميثم حسن راضي ","الثاني ابتدائي ",900000,null,null,null,null,null,null,null,null,null,null,null,null,0,900000]
[96,"عباس نوفل منتضر","الاول ابتدائي ",900000,null,null,null,null,null,null,null,null,null,null,null,null,0,900000]
[97,"عبد الل..كاظم هاتف","السادس اعدادي ",2000000,null,null,null,null,null,null,null,null,null,null,null,null,0,2000000]
[98,"عبد الله حيدر عبد كاضم","الاول متوسط ",1000000,null,null,null,null,null,null,null,null,null,null,null,null,0,1000000]
[99,"عبد الله صفاء شهيد ","الاول ابتدائي ",900000,null,null,null,null,null,null,null,null,null,null,null,null,0,900000]
[100,"عبد الله عقيل ابراهيم ","الخامس ابتدائي ",950000,null,null,null,null,null,null,null,null,null,null,null,null,0,950000]
[101,"عبد الله علي محمد ","الثالث متوسط ",1050000,null,null,null,null,null,null,null,null,null,null,null,null,0,1050000]
[102,"عبد الله نجم عبد الله ","الاول ابتدائي ",900000,null,null,null,null,null,null,null,null,null,null,null,null,0,900000]
[103,"عز الدين مشتاق عبد المطلب","الاول متوسط ",1000000,null,null,null,null,null,null,null,null,null,null,null,null,0,1000000]
[104,"علاء الدين حسين اسماعيل","الثالث متوسط ",1050000,null,null,null,null,null,null,null,null,null,null,null,null,0,1050000]
[105,"علي احمد جعفر ","الثالث ابتدائي ",900000,null,null,null,null,null,null,null,null,null,null,null,null,0,900000]
[106,"علي اكبر علي ابراهيم ","السادس اعدادي ",2000000,null,null,null,null,null,null,null,null,null,null,null,null,0,2000000]
[107,"علي الرضا فلاح حسن","الرابع اعدادي ",1350000,null,null,null,null,null,null,null,null,null,null,null,null,0,1350000]
[108,"علي الكرار حيدر علي","الاول ابتدائي ",900000,null,null,null,null,null,null,null,null,null,null,null,null,0,900000]
[109,"علي بهاء مهدي ","الثالث متوسط ",1050000,null,null,null,null,null,null,null,null,null,null,null,null,0,1050000]
[110,"علي حسن نجم","الاول متوسط ",1000000,null,null,null,null,null,null,null,null,null,null,null,null,0,1000000]
[111,"علي حسين رشيد","السادس اعدادي ",2000000,null,null,null,null,null,null,null,null,null,null,null,null,0,2000000]
[112,"علي حسين سليم ","الثالث ابتدائي ",900000,null,null,null,null,null,null,null,null,null,null,null,null,0,900000]
[113,"علي خليل ابراهيم ","الاول متوسط ",1000000,null,null,null,null,null,null,null,null,null,null,null,null,0,1000000]
[114,"علي درع جبار","الثالث متوسط ",1050000,null,null,null,null,null,null,null,null,null,null,null,null,0,1050000]
[115,"علي رضا مسلم طالب ","الاول متوسط ",1000000,null,null,null,null,null,null,null,null,null,null,null,null,0,1000000]
[116,"علي زيد نوري","السادس ابتدائي ",950000,null,null,null,null,null,null,null,null,null,null,null,null,0,950000]
[117,"علي سعد وحيد","الاول متوسط ",1000000,null,null,null,null,null,null,null,null,null,null,null,null,0,1000000]
[118,"علي عادل محمد ","الاول ابتدائي ",900000,null,null,null,null,null,null,null,null,null,null,null,null,0,900000]
[119,"علي عامر محمد موسى كاظم","السادس اعدادي ",2000000,null,null,null,null,null,null,null,null,null,null,null,null,0,2000000]
[120,"علي عبد الحكيم عامر ","الاول ابتدائي ",900000,null,null,null,null,null,null,null,null,null,null,null,null,0,900000]
[121,"علي عبد الكريم مهدي","السادس اعدادي ",2000000,null,null,null,null,null,null,null,null,null,null,null,null,0,2000000]
[122,"علي عبد المحسن ","السادس ابتدائي ",950000,null,null,null,null,null,null,null,null,null,null,null,null,0,950000]
[123,"علي عبد الهادي عبد الحسن ","الاول متوسط ",1000000,null,null,null,null,null,null,null,null,null,null,null,null,0,1000000]
[124,"علي ماجد عكله ","الرابع ابتدائي ",900000,null,null,null,null,null,null,null,null,null,null,null,null,0,900000]
[125,"علي نبيل عبد الهادي","الاول ابتدائي ",900000,null,null,null,null,null,null,null,null,null,null,null,null,0,900000]
[126,"علي نوري خضير","السادس اعدادي ",2000000,null,null,null,null,null,null,null,null,null,null,null,null,0,2000000]
[127,"علي نوري خضير","السادس اعدادي ",2000000,null,null,null,null,null,null,null,null,null,null,null,null,0,2000000]
[128,"علي هادي راهي ","السادس ابتدائي ",950000,null,null,null,null,null,null,null,null,null,null,null,null,0,950000]
[129,"عليوي حيدر عليوي ","السادس ابتدائي ",950000,null,null,null,null,null,null,null,null,null,null,null,null,0,950000]
[130,"عمار علي خيون","السادس اعدادي ",2000000,null,null,null,null,null,null,null,null,null,null,null,null,{"$f":"E134+H134+K134+N134","v":0},{"$f":"D134-Q134","v":2000000}]
[131,"غيث عمار عبد علي ","الثالث متوسط ",1050000,null,null,null,null,null,null,null,null,null,null,null,null,0,1050000]
[132,"فاطمه عباس حسن ","الثالث متوسط ",1050000,null,null,null,null,null,null,null,null,null,null,null,null,0,1050000]
[133,"فاطمه منتظر هدي صاحب ","الثاني متوسط ",1000000,null,null,null,null,null,null,null,null,null,null,null,null,0,1000000]
[134,"فضل الله عبد الحسين ناهي","الاول ابتدائي ",900000,null,null,null,null,null,null,null,null,null,null,null,null,0,900000]
[135,"فضه سلام عباس ","الاول ابتدائي ",900000,null,null,null,null,null,null,null,null,null,null,null,null,0,900000]
[136,"كاظم فلاح عبد الكاظم","الاول متوسط ",1000000,null,null,null,null,null,null,null,null,null,null,null,null,0,1000000]
[137,"كرار جاسم جواد","السادس اعدادي ",2000000,null,null,null,null,null,null,null,null,null,null,null,null,0,2000000]
[138,"كميل زيد عباس ","السادس ابتدائي ",950000,null,null,null,null,null,null,null,null,null,null,null,null,0,950000]
[139,"كميل ميثم حسن راضي ","الثالث متوسط ",1050000,null,null,null,null,null,null,null,null,null,null,null,null,0,1050000]
[140,"ليث طالب هادي ","الاول متوسط ",1000000,null,null,null,null,null,null,null,null,null,null,null,null,0,1000000]
[141,"ليث عدي صادق ","السادس ابتدائي ",950000,null,null,null,null,null,null,null,null,null,null,null,null,0,950000]
[142,"ليث محمد عبد الله","الاول متوسط ",1000000,null,null,null,null,null,null,null,null,null,null,null,null,0,1000000]
[143,"مجتبى باسم مرهون ","الخامس ابتدائي ",950000,null,null,null,null,null,null,null,null,null,null,null,null,0,950000]
[144,"مجتبى حسن جاسم ","الاول ابتدائي ",900000,null,null,null,null,null,null,null,null,null,null,null,null,0,900000]
[145,"محمد احمد عبد الامير ","الاول ابتدائي ",900000,null,null,null,null,null,null,null,null,null,null,null,null,0,900000]
[146,"محمد اياد محمد","الثالث متوسط ",1050000,null,null,null,null,null,null,null,null,null,null,null,null,0,1050000]
[147,"محمد اياد محمد","الثالث متوسط ",1050000,null,null,null,null,null,null,null,null,null,null,null,null,0,1050000]
[148,"محمد باقر حيدر اسماعيل ","الاول متوسط ",1000000,null,null,null,null,null,null,null,null,null,null,null,null,0,1000000]
[149,"محمد باقر درع جبار","الثالث متوسط ",1050000,null,null,null,null,null,null,null,null,null,null,null,null,0,1050000]
[150,"محمد باقر سعد هاتف ","الاول متوسط ",1000000,null,null,null,null,null,null,null,null,null,null,null,null,0,1000000]
[151,"محمد باقر عباس ","السادس ابتدائي ",950000,null,null,null,null,null,null,null,null,null,null,null,null,0,950000]
[152,"محمد جميل رحيم ","الثاني متوسط ",1000000,null,null,null,null,null,null,null,null,null,null,null,null,0,1000000]
[153,"محمد حسن جواد كاظم ","الاول ابتدائي ",900000,null,null,null,null,null,null,null,null,null,null,null,null,0,900000]
[154,"محمد حسن رائد محمد رضا ","الاول متوسط ",1000000,null,null,null,null,null,null,null,null,null,null,null,null,0,1000000]
[155,"محمد حسن عبد الهادي","الخامس اعدادي ",1350000,null,null,null,null,null,null,null,null,null,null,null,null,0,1350000]
[156,"محمد حسن قنان","السادس اعدادي ",2000000,null,null,null,null,null,null,null,null,null,null,null,null,0,2000000]
[157,"محمد حسن مجتبى محمد رضا ","الثالث ابتدائي ",900000,null,null,null,null,null,null,null,null,null,null,null,null,0,900000]
[158,"محمد حسين طيب ","الاول متوسط ",1000000,null,null,null,null,null,null,null,null,null,null,null,null,0,1000000]
[159,"محمد حسين كاظم مريوم ","الخامس اعدادي ",1350000,null,null,null,null,null,null,null,null,null,null,null,null,0,1350000]
[160,"محمد حيدر مسافر ","الخامس ابتدائي ",950000,null,null,null,null,null,null,null,null,null,null,null,null,0,950000]
[161,"محمد رضا بهاء محمد علي ","الاول ابتدائي ",900000,null,null,null,null,null,null,null,null,null,null,null,null,0,900000]
[162,"محمد رضا حيدر محمد رضا","السادس ابتدائي ",950000,null,null,null,null,null,null,null,null,null,null,null,null,0,950000]
[163,"محمد رضا عبد الحكيم ","السادس ابتدائي ",950000,null,null,null,null,null,null,null,null,null,null,null,null,0,950000]
[164,"محمد رضا علي حسين","الاول ابتدائي ",900000,null,null,null,null,null,null,null,null,null,null,null,null,0,900000]
[165,"محمد رضا فائز مرتضى","السادس اعدادي ",2000000,null,null,null,null,null,null,null,null,null,null,null,null,0,2000000]
[166,"محمد رضا محمد مطلب","الاول ابتدائي ",900000,null,null,null,null,null,null,null,null,null,null,null,null,0,900000]
[167,"محمد رضا مصطفى سعد","الاول ابتدائي ",900000,null,null,null,null,null,null,null,null,null,null,null,null,0,900000]
[168,"محمد رضا منذر نعمان ","الاول متوسط ",1000000,null,null,null,null,null,null,null,null,null,null,null,null,0,1000000]
[169,"محمد رضا مهند قاسم ","الثاني متوسط ",1000000,null,null,null,null,null,null,null,null,null,null,null,null,0,1000000]
[170,"محمد رضا يوسف حمود ","الرابع اعدادي ",1350000,null,null,null,null,null,null,null,null,null,null,null,null,0,1350000]
[171,"محمد رؤوف محمد","الاول ابتدائي ",900000,null,null,null,null,null,null,null,null,null,null,null,null,0,900000]
[172,"محمد زيد نوري","الاول ابتدائي ",900000,null,null,null,null,null,null,null,null,null,null,null,null,0,900000]
[173,"محمد سعيد عامر كاظم ","الاول متوسط ",1000000,null,null,null,null,null,null,null,null,null,null,null,null,0,1000000]
[174,"محمد عادل محمد ","الثاني ابتدائي ",900000,null,null,null,null,null,null,null,null,null,null,null,null,0,900000]
[175,"محمد عبد الكاظم كريم ","الاول متوسط ",1000000,null,null,null,null,null,null,null,null,null,null,null,null,0,1000000]
[176,"محمد عقيل حسن ","الخامس ابتدائي ",950000,null,null,null,null,null,null,null,null,null,null,null,null,0,950000]
[177,"محمد علي ثائر بركه ","الخامس ابتدائي ",950000,null,null,null,null,null,null,null,null,null,null,null,null,0,950000]
[178,"محمد علي حسين صالح","السادس اعدادي ",2000000,null,null,null,null,null,null,null,null,null,null,null,null,0,2000000]
[179,"محمد علي حيدر صباح ","الاول ابتدائي ",900000,null,null,null,null,null,null,null,null,null,null,null,null,0,900000]
[180,"محمد علي سيف حسين","الاول ابتدائي ",900000,null,null,null,null,null,null,null,null,null,null,null,null,0,900000]
[181,"محمد مهدي منتظر","الاول ابتدائي ",900000,null,null,null,null,null,null,null,null,null,null,null,null,0,900000]
[182,"محمد مهنا حمود حمادي ","السادس اعدادي ",2000000,null,null,null,null,null,null,null,null,null,null,null,null,0,2000000]
[183,"محمد نبيل مرعي حسن","الاول متوسط ",1000000,null,null,null,null,null,null,null,null,null,null,null,null,0,1000000]
[184,"محمود سعد عبود ","السادس ابتدائي ",950000,null,null,null,null,null,null,null,null,null,null,null,null,0,950000]
[185,"مرتجى تحرير حميد","السادس اعدادي ",2000000,null,null,null,null,null,null,null,null,null,null,null,null,0,2000000]
[186,"مرتضى ارؤكان بديوي","السادس اعدادي ",2000000,null,null,null,null,null,null,null,null,null,null,null,null,0,2000000]
[187,"مرتضى رحيم حسين","الثالث متوسط ",1050000,null,null,null,null,null,null,null,null,null,null,null,null,0,1050000]
[188,"مرتضى محمد علي حسن ","الرابع اعدادي ",1350000,null,null,null,null,null,null,null,null,null,null,null,null,0,1350000]
[189,"مريم حيدر ابراهيم ","الخامس اعدادي ",1350000,null,null,null,null,null,null,null,null,null,null,null,null,0,1350000]
[190,"مريم ضياء شسعيد","السادس اعدادي ",2000000,null,null,null,null,null,null,null,null,null,null,null,null,0,2000000]
[191,"مسلم عقيل ابراهيم ","الاول متوسط ",1000000,null,null,null,null,null,null,null,null,null,null,null,null,0,1000000]
[192,"مسلم عمار عبد ال...","الاول متوسط ",1000000,null,null,null,null,null,null,null,null,null,null,null,null,0,1000000]
[193,"مصطفى توفيق عبد الرحيم ","الثالث متوسط ",1050000,null,null,null,null,null,null,null,null,null,null,null,null,0,1050000]
[194,"مصطفى حيدر فرحان ","الاول ابتدائي ",900000,null,null,null,null,null,null,null,null,null,null,null,null,{"$f":"E198+H198+K198+N198","v":0},{"$f":"D198-Q198","v":900000}]
[195,"مصطفى حيدر ميثم عبد الله ","السادس ابتدائي ",950000,null,null,null,null,null,null,null,null,null,null,null,null,0,950000]
[196,"مصطفى رائد لطيف ","الخامس ابتدائي ",950000,null,null,null,null,null,null,null,null,null,null,null,null,0,950000]
[197,"مصطفى صباح عبد الهادي","الاول متوسط ",1000000,null,null,null,null,null,null,null,null,null,null,null,null,0,1000000]
[198,"مصطفى عباس كريم ","الخامس ابتدائي ",950000,null,null,null,null,null,null,null,null,null,null,null,null,0,950000]
[199,"مصطفى عدي صادق ","الرابع ابتدائي ",900000,null,null,null,null,null,null,null,null,null,null,null,null,0,900000]
[200,"مصطفى موسى جعفر ","الثالث متوسط ",1050000,null,null,null,null,null,null,null,null,null,null,null,null,0,1050000]
[201,"مقتدى نعمان محمد","الثالث متوسط ",1050000,null,null,null,null,null,null,null,null,null,null,null,null,0,1050000]
[202,"مقداد اسعد رشاد ","السادس اعدادي ",2000000,null,null,null,null,null,null,null,null,null,null,null,null,0,2000000]
[203,"ملك عبد الله عبد الكريم بلال ","السادس ابتدائي ",950000,null,null,null,null,null,null,null,null,null,null,null,null,0,950000]
[204,"منتظر احمد عبد الرحمن ","الاول متوسط ",1000000,null,null,null,null,null,null,null,null,null,null,null,null,0,1000000]
[205,"منتظر احمد هاشم","السادس اعدادي ",2000000,null,null,null,null,null,null,null,null,null,null,null,null,0,2000000]
[206,"منتظر صادق جعفر ","الاول ابتدائي ",900000,null,null,null,null,null,null,null,null,null,null,null,null,0,900000]
[207,"منتظر عبد الرحيم","السادس اعدادي ",2000000,null,null,null,null,null,null,null,null,null,null,null,null,0,2000000]
[208,"منتظر عبد العباس عبد الله ","الخامس ابتدائي ",950000,null,null,null,null,null,null,null,null,null,null,null,null,0,950000]
[209,"مهدي حيدر محمد جلاب ","الاول ابتدائي ",900000,null,null,null,null,null,null,null,null,null,null,null,null,0,900000]
[210,"مهدي ستار عبد الساده ","الاول متوسط ",1000000,null,null,null,null,null,null,null,null,null,null,null,null,0,1000000]
[211,"مهدي عبد الكريم بلال ","الاول ابتدائي ",900000,null,null,null,null,null,null,null,null,null,null,null,null,0,900000]
[212,"مهدي منتظر رعد ","الاول ابتدائي ",900000,null,null,null,null,null,null,null,null,null,null,null,null,0,900000]
[213,"مهدي منتظر محمد ","الاول ابتدائي ",900000,null,null,null,null,null,null,null,null,null,null,null,null,0,900000]
[214,"مهيمن فراس سليم","السادس ابتدائي ",950000,null,null,null,null,null,null,null,null,null,null,null,null,0,950000]
[215,"مؤمل قصي نعمه حسون ","السادس ابتدائي ",950000,null,null,null,null,null,null,null,null,null,null,null,null,0,950000]
[216,"ميار اجود محسن عبد الصاحب","الثالث ابتدائي ",900000,null,null,null,null,null,null,null,null,null,null,null,null,0,900000]
[217,"نبأ فائز كامل","السادس اعدادي ",2000000,null,null,null,null,null,null,null,null,null,null,null,null,0,2000000]
[218,"نرجس احمد عبد الامير ","السادس ابتدائي ",950000,null,null,null,null,null,null,null,null,null,null,null,null,0,950000]
[219,"نرجس عباس جاسم حسن ","الاول ابتدائي ",900000,null,null,null,null,null,null,null,null,null,null,null,null,0,900000]
[220,"نرجس عبد الله عبد الكريم بلال ","الاول ابتدائي ",900000,null,null,null,null,null,null,null,null,null,null,null,null,0,900000]
[221,"نهى حسن سودي ","الثاني متوسط ",1000000,null,null,null,null,null,null,null,null,null,null,null,null,0,1000000]
[222,"نور الهدى عباس جاسم ","الخامس ابتدائي ",950000,null,null,null,null,null,null,null,null,null,null,null,null,0,950000]
[223,"هاشم محمد علي هاشم ","الرابع ابتدائي ",900000,null,null,null,null,null,null,null,null,null,null,null,null,0,900000]
[224,"همام قصي نعمه حسون ","الاول ابتدائي ",900000,null,null,null,null,null,null,null,null,null,null,null,null,0,900000]
[225,"ياسمين حسنين حيدر ","الاول ابتدائي ",900000,null,null,null,null,null,null,null,null,null,null,null,null,0,900000]
[226,"ياسين اجود محسن عبد الصاحب","الاول ابتدائي ",900000,null,null,null,null,null,null,null,null,null,null,null,null,0,900000]
[227,"يزن ازار محمد رضا","الاول ابتدائي ",900000,null,null,null,null,null,null,null,null,null,null,null,null,0,900000]
[228,"يوسف احمد شاكر ","السادس ابتدائي ",950000,null,null,null,null,null,null,null,null,null,null,null,null,0,950000]
[229,"يوسف حسين حمودي ","الاول متوسط ",1000000,null,null,null,null,null,null,null,null,null,null,null,null,0,1000000]
[230,"يوسف حيدر محمد  رضا","الثالث ابتدائي ",900000,null,null,null,null,null,null,null,null,null,null,null,null,0,900000]
[231,"يوسف محمد صالح ","السادس ابتدائي ",950000,null,null,null,null,null,null,null,null,null,null,null,null,0,950000]
[232,"يوسف مكي شاكر","السادس اعدادي ",2000000,null,null,null,null,null,null,null,null,null,null,null,null,0,2000000]